fUSD/lending_fUSD_20260620
["ID","MTS","AMOUNT","RATE_DAILY","PERIOD"]
[425830189,1781953840000,-249.0,0.00021972,2]
[425830191,1781953840000,-8000.0,0.00022,3]
[425830190,1781953840000,-800.74,0.00022,5]
[425830192,1781953840000,-500.0,0.00022,3]
[425830194,1781953840000,-151.0,0.00022,2]
[425830140,1781953840000,-181.08010149,0.00021034,2]
[425830196,1781953840000,-150.0,0.00022,2]
[425830167,1781953840000,-150.0,0.00021918,2]
[425830170,1781953840000,-150.0,0.00021918,2]
[425830195,1781953840000,-420.0,0.00022,2]
[425830168,1781953840000,-150.0,0.00021918,2]
[425830169,1781953840000,-150.0,0.00021918,2]
[425830145,1781953840000,-1783.53,0.00021041,2]
[425830143,1781953840000,-154.56643835,0.00021034,2]
[425830144,1781953840000,-151.0,0.00021036,2]
[425830146,1781953840000,-511.03,0.000211,2]
[425830147,1781953840000,-336.812553,0.0002156,2]
[425830142,1781953840000,-2157.14243826,0.00021034,2]
[425830148,1781953840000,-220.2864,0.0002156,2]
[425830149,1781953840000,-200.0,0.00021582,2]
[425830151,1781953840000,-151.0,0.00021582,2]
[425830153,1781953840000,-154.56643835,0.00021582,2]
[425830152,1781953840000,-2236.95670847,0.00021582,2]
[425830150,1781953840000,-187.78006524,0.00021582,2]
[425830139,1781953840000,-200.0,0.00021034,2]
[425830157,1781953840000,-504.0,0.00021846,3]
[425830154,1781953840000,-2000.0,0.00021657,7]
[425830164,1781953840000,-150.0,0.00021918,2]
[425830165,1781953840000,-150.0,0.00021918,2]
[425830166,1781953840000,-150.0,0.00021918,2]
[425830162,1781953840000,-150.0,0.00021918,2]
[425830163,1781953840000,-150.0,0.00021918,2]
[425830159,1781953840000,-5000.0,0.00021918,2]
[425830156,1781953840000,-23466.70126906,0.00021738,2]
[425830160,1781953840000,-150.0,0.00021918,2]
[425830158,1781953840000,-303.89170774,0.00021869,2]
[425830161,1781953840000,-150.0,0.00021918,2]
[425830155,1781953840000,-300.05156038,0.00021706,2]
[425830231,1781953841000,-336.812553,0.0002352,120]
[425830233,1781953841000,-169.97,0.00023593,2]
[425830230,1781953841000,-755.26,0.00023288,2]
[425830234,1781953841000,-169.97,0.00023593,2]
[425830229,1781953841000,-150.0,0.0002326,21]
[425830227,1781953841000,-154.56643835,0.00023226,2]
[425830225,1781953841000,-200.0,0.00023226,2]
[425830226,1781953841000,-209.40437684,0.00023226,2]
[425830232,1781953841000,-23466.70126906,0.00023536,2]
[425830228,1781953841000,-2494.55939288,0.00023226,2]
[425830223,1781953841000,-599.60298507,0.00023225,2]
[425830239,1781953841000,-154.56643835,0.00023774,2]
[425830235,1781953841000,-150.0,0.00023667,2]
[425830237,1781953841000,-211.43,0.0002374,2]
[425830238,1781953841000,-217.15233878,0.00023774,2]
[425830240,1781953841000,-736.95670842,0.00023774,2]
[425830245,1781953841000,-161.0,0.00024,2]
[425830242,1781953841000,-608.41738031,0.00023855,2]
[425830243,1781953841000,-221.225847,0.00023933,14]
[425830241,1781953841000,-511.03,0.000238,7]
[425830244,1781953841000,-11329.12991147,0.00024,2]
[425830247,1781953841000,-420.0,0.00024,2]
[425830224,1781953841000,-747.80937859,0.00023225,2]
[425830236,1781953841000,-504.0,0.00023692,5]
[425830222,1781953841000,-220.05119748,0.00023137,2]
[425830207,1781953841000,-1783.53,0.00022411,2]
[425830221,1781953841000,-420.0,0.00023,2]
[425830246,1781953841000,-159.0,0.00024,2]
[425830199,1781953841000,-200.0,0.0002213,2]
[425830197,1781953841000,-886.71,0.00022,2]
[425830198,1781953841000,-1133.0,0.00022091,5]
[425830200,1781953841000,-194.72792766,0.0002213,2]
[425830202,1781953841000,-154.56643835,0.0002213,2]
[425830204,1781953841000,-301.116896,0.00022194,14]
[425830203,1781953841000,-2319.72410669,0.0002213,2]
[425830205,1781953841000,-189.8,0.00022353,2]
[425830201,1781953841000,-151.0,0.0002213,2]
[425830206,1781953841000,-511.03,0.000224,7]
[425830208,1781953841000,-299.71,0.00022466,2]
[425830209,1781953841000,-150.0,0.0002254,2]
[425830210,1781953841000,-200.0,0.00022678,2]
[425830212,1781953841000,-153.14864244,0.00022678,2]
[425830211,1781953841000,-201.93286098,0.00022678,2]
[425830216,1781953841000,-158.0,0.00023,2]
[425830213,1781953841000,-154.56643835,0.00022678,2]
[425830214,1781953841000,-2405.55389863,0.00022678,2]
[425830215,1781953841000,-504.0,0.00022769,4]
[425830217,1781953841000,-500.0,0.00023,3]
[425830218,1781953841000,-495.1224017,0.00023,3]
[425830219,1781953841000,-443.81867107,0.00023,3]
[425830220,1781953841000,-151.0,0.00023,2]
[425830249,1781953841000,-500.0,0.00024096,2]
[425830298,1781953841000,-164.08,0.00025,2]
[425830251,1781953841000,-667.79,0.00024174,2]
[425830277,1781953841000,-248.18596312,0.00024786,4]
[425830280,1781953841000,-160.0,0.00024821,2]
[425830281,1781953841000,-150.0,0.0002485,2]
[425830282,1781953841000,-223.97698877,0.0002487,2]
[425830279,1781953841000,-350.0,0.000248,6]
[425830284,1781953841000,-9292.80853603,0.000249,2]
[425830288,1781953841000,-248.104623,0.00024938,7]
[425830285,1781953841000,-1229.0,0.00024934,2]
[425830286,1781953841000,-6081.0,0.00024934,2]
[425830289,1781953841000,-500.0,0.00024974,2]
[425830283,1781953841000,-511.03,0.000249,7]
[425830287,1781953841000,-1215.0,0.00024934,2]
[425830290,1781953841000,-151.0,0.00024997,7]
[425830291,1781953841000,-151.0,0.00024997,7]
[425830292,1781953841000,-316.1320903,0.00024999,10]
[425830293,1781953841000,-63836.57257161,0.00025,5]
[425830294,1781953841000,-214.37,0.00025,2]
[425830295,1781953841000,-438.0,0.00025,2]
[425830296,1781953841000,-164.08,0.00025,2]
[425830297,1781953841000,-164.08,0.00025,2]
[425830301,1781953841000,-164.08,0.00025,2]
[425830300,1781953841000,-164.08,0.00025,2]
[425830299,1781953841000,-164.08,0.00025,2]
[425830274,1781953841000,-294.18428979,0.00024758,7]
[425830278,1781953841000,-200.0,0.00024799,2]
[425830248,1781953841000,-551.34184329,0.00024096,2]
[425830275,1781953841000,-500.0,0.00024758,2]
[425830252,1781953841000,-2317.82,0.00024174,2]
[425830250,1781953841000,-1887.57,0.00024174,2]
[425830254,1781953841000,-2002.8002,0.00024272,2]
[425830253,1781953841000,-26804.04,0.00024174,2]
[425830256,1781953841000,-154.56643845,0.00024322,2]
[425830255,1781953841000,-225.18697532,0.00024322,2]
[425830276,1781953841000,-2197.96,0.00024786,2]
[425830258,1781953841000,-403.0,0.00024359,2]
[425830259,1781953841000,-321.0,0.00024359,2]
[425830260,1781953841000,-344.7212159,0.00024399,2]
[425830262,1781953841000,-508.47947576,0.00024499,2]
[425830257,1781953841000,-189.8,0.00024324,2]
[425830267,1781953841000,-886.71,0.00024637,7]
[425830261,1781953841000,-500.0,0.00024499,2]
[425830273,1781953841000,-151.0,0.00024713,2]
[425830268,1781953841000,-1000.0,0.00024658,2]
[425830270,1781953841000,-160.14,0.00024658,2]
[425830271,1781953841000,-161.26,0.00024658,2]
[425830272,1781953841000,-151.0,0.00024708,2]
[425830264,1781953841000,-500.0,0.00024499,2]
[425830265,1781953841000,-500.0,0.00024499,2]
[425830263,1781953841000,-436.47696276,0.00024499,2]
[425830266,1781953841000,-504.0,0.00024615,6]
[425830269,1781953841000,-273.06,0.00024658,2]
[425830330,1781953842000,-250.930747,0.0002623,14]
[425830331,1781953842000,-2000.0,0.00026243,7]
[425830333,1781953842000,-189.8,0.00026296,2]
[425830332,1781953842000,-398.0394,0.00026258,14]
[425830334,1781953842000,-511.03,0.000263,7]
[425830335,1781953842000,-151.0,0.00026355,2]
[425830336,1781953842000,-15263.0,0.00026438,2]
[425830337,1781953842000,-504.0,0.00026462,8]
[425830338,1781953842000,-164.08,0.00026463,2]
[425830339,1781953842000,-436.260914,0.00026469,2]
[425830351,1781953842000,-500.0,0.00026999,2]
[425830342,1781953842000,-150.0,0.00026473,5]
[425830343,1781953842000,-19464.44,0.000265,7]
[425830346,1781953842000,-1628.97396002,0.00026912,2]
[425830344,1781953842000,-300.0,0.0002673,7]
[425830340,1781953842000,-390.449924,0.00026469,2]
[425830345,1781953842000,-4300.0,0.000269,9]
[425830347,1781953842000,-1444.83,0.00026945,120]
[425830348,1781953842000,-200.0,0.00026965,2]
[425830349,1781953842000,-151.0,0.00026996,7]
[425830350,1781953842000,-151.0,0.00026997,7]
[425830328,1781953842000,-316.0,0.000261,2]
[425830341,1781953842000,-382.941273,0.00026473,2]
[425830329,1781953842000,-2197.98,0.00026156,2]
[425830313,1781953842000,-1887.57,0.00025786,2]
[425830327,1781953842000,-310.0,0.000261,2]
[425830354,1781953842000,-500.0,0.00026999,2]
[425830302,1781953842000,-164.08,0.00025,2]
[425830304,1781953842000,-303.89170774,0.0002535,2]
[425830305,1781953842000,-1424.0,0.00025378,5]
[425830303,1781953842000,-23466.70126906,0.00025334,2]
[425830307,1781953842000,-2197.96,0.00025471,2]
[425830306,1781953842000,-425.48941759,0.00025402,2]
[425830310,1781953842000,-161.26,0.00025526,7]
[425830308,1781953842000,-159.9,0.00025526,7]
[425830309,1781953842000,-160.14,0.00025526,7]
[425830311,1781953842000,-151.0,0.00025529,2]
[425830312,1781953842000,-504.0,0.00025538,7]
[425830315,1781953842000,-2317.82,0.00025786,2]
[425830316,1781953842000,-26804.04,0.00025786,2]
[425830314,1781953842000,-667.79,0.00025786,2]
[425830318,1781953842000,-621.78829552,0.00025964,2]
[425830319,1781953842000,-775.4783256,0.00025964,2]
[425830321,1781953842000,-161.592853,0.00026001,14]
[425830320,1781953842000,-550.92666017,0.00026,26]
[425830323,1781953842000,-150.0,0.00026093,2]
[425830322,1781953842000,-350.0,0.00026039,7]
[425830317,1781953842000,-150.0,0.0002589,2]
[425830324,1781953842000,-151.0,0.00026097,7]
[425830326,1781953842000,-442.0,0.000261,2]
[425830353,1781953842000,-500.0,0.00026999,2]
[425830325,1781953842000,-4416.0,0.000261,2]
[425830355,1781953842000,-500.0,0.00026999,2]
[425830393,1781953842000,-361.49809199,0.00027397,2]
[425830392,1781953842000,-150.0,0.00027397,2]
[425830389,1781953842000,-504.0,0.00027385,9]
[425830391,1781953842000,-151.0,0.00027394,7]
[425830397,1781953842000,-1000.0,0.00027397,20]
[425830398,1781953842000,-273.06,0.00027397,2]
[425830394,1781953842000,-1500.0,0.00027397,2]
[425830395,1781953842000,-415.15698015,0.00027397,2]
[425830396,1781953842000,-429.9505709,0.00027397,2]
[425830400,1781953842000,-21216.56,0.00027397,10]
[425830399,1781953842000,-25459.87,0.00027397,10]
[425830402,1781953842000,-150.0,0.00027397,2]
[425830401,1781953842000,-17680.47,0.00027397,10]
[425830404,1781953842000,-645.1,0.000274,30]
[425830410,1781953842000,-151.0,0.00027525,7]
[425830405,1781953842000,-386.0,0.0002744,2]
[425830406,1781953842000,-151.0,0.00027497,7]
[425830407,1781953842000,-500.0,0.000275,7]
[425830409,1781953842000,-503.61749186,0.00027518,2]
[425830408,1781953842000,-511.03,0.000275,7]
[425830411,1781953842000,-572042.89906251,0.00027528,2]
[425830413,1781953842000,-150.0,0.00027532,5]
[425830352,1781953842000,-503.17226456,0.00026999,2]
[425830412,1781953842000,-953.83945068,0.0002753,2]
[425830387,1781953842000,-886.71,0.00027273,7]
[425830403,1781953842000,-150.0,0.00027398,2]
[425830384,1781953842000,-6881.0130814,0.00027206,2]
[425830385,1781953842000,-350.0,0.00027209,9]
[425830357,1781953842000,-500.0,0.00026999,2]
[425830356,1781953842000,-500.0,0.00026999,2]
[425830360,1781953842000,-150.0,0.00027,2]
[425830359,1781953842000,-283195.45588272,0.00027,2]
[425830358,1781953842000,-500.0,0.00026999,2]
[425830361,1781953842000,-150.0,0.00027,2]
[425830374,1781953842000,-168.03,0.00027106,7]
[425830365,1781953842000,-3560.0,0.00027,2]
[425830370,1781953842000,-760.68321528,0.00027029,2]
[425830369,1781953842000,-1360.0,0.00027,2]
[425830367,1781953842000,-383.0,0.00027,2]
[425830363,1781953842000,-150.196,0.00027,2]
[425830368,1781953842000,-1276.0,0.00027,2]
[425830383,1781953842000,-396.26,0.00027199,2]
[425830371,1781953842000,-386.0,0.00027046,2]
[425830382,1781953842000,-396.26,0.00027199,2]
[425830381,1781953842000,-185.19,0.00027178,2]
[425830380,1781953842000,-644.29,0.00027176,2]
[425830378,1781953842000,-1628.97396002,0.0002713,2]
[425830379,1781953842000,-23466.70126906,0.00027132,2]
[425830377,1781953842000,-1160.0550744,0.00027125,7]
[425830376,1781953842000,-174.48,0.00027106,7]
[425830375,1781953842000,-162.32,0.00027106,7]
[425830372,1781953842000,-760.68321528,0.0002708,2]
[425830432,1781953843000,-160.14,0.00027743,7]
[425830430,1781953843000,-200.0,0.00027721,2]
[425830434,1781953843000,-1445.68078473,0.00027845,2]
[425830435,1781953843000,-155.49,0.00027872,2]
[425830436,1781953843000,-248.81,0.00027872,2]
[425830439,1781953843000,-158.6,0.0002788,2]
[425830437,1781953843000,-155.79,0.00027872,2]
[425830433,1781953843000,-161.26,0.00027743,7]
[425830440,1781953843000,-953.83945068,0.00027888,2]
[425830444,1781953843000,-6081.0,0.00027934,2]
[425830441,1781953843000,-1445.68078473,0.00027899,2]
[425830442,1781953843000,-953.83945068,0.00027904,2]
[425830445,1781953843000,-1215.0,0.00027934,2]
[425830438,1781953843000,-201.92,0.00027872,2]
[425830431,1781953843000,-588.15147393,0.00027725,2]
[425830416,1781953843000,-160.14,0.0002755,2]
[425830427,1781953843000,-248.81,0.00027711,7]
[425830443,1781953843000,-1229.0,0.00027934,2]
[425830414,1781953843000,-386.0,0.00027542,2]
[425830415,1781953843000,-1099.68684586,0.00027547,2]
[425830417,1781953843000,-155.49,0.0002755,30]
[425830418,1781953843000,-248.81,0.0002755,30]
[425830419,1781953843000,-161.26,0.0002755,2]
[425830429,1781953843000,-201.92,0.00027711,7]
[425830420,1781953843000,-155.79,0.0002755,30]
[425830423,1781953843000,-1444.83,0.0002763,120]
[425830422,1781953843000,-501.08961846,0.00027561,2]
[425830424,1781953843000,-152.0,0.00027642,3]
[425830425,1781953843000,-327.0,0.00027688,2]
[425830426,1781953843000,-155.49,0.00027711,7]
[425830428,1781953843000,-155.79,0.00027711,7]
[425830421,1781953843000,-201.92,0.0002755,30]
[425830446,1781953843000,-160.14,0.00027936,30]
[425830451,1781953843000,-185.2,0.00027992,2]
[425830450,1781953843000,-151.0,0.00027987,7]
[425830447,1781953843000,-161.26,0.00027936,30]
[425830485,1781953843000,-185.19,0.00028,2]
[425830483,1781953843000,-396.26,0.00028,2]
[425830484,1781953843000,-482.4,0.00028,2]
[425830481,1781953843000,-218.4,0.00028,3]
[425830482,1781953843000,-482.4,0.00028,2]
[425830480,1781953843000,-200.0,0.00028,2]
[425830479,1781953843000,-1000.0,0.00028,28]
[425830477,1781953843000,-491.67,0.00028,2]
[425830474,1781953843000,-644.31,0.00027999,2]
[425830473,1781953843000,-396.26,0.00027998,2]
[425830471,1781953843000,-396.26,0.00027998,2]
[425830472,1781953843000,-396.26,0.00027998,2]
[425830470,1781953843000,-185.19,0.00027998,2]
[425830468,1781953843000,-185.15,0.00027996,2]
[425830478,1781953843000,-485.91,0.00028,2]
[425830467,1781953843000,-185.19,0.00027996,2]
[425830452,1781953843000,-185.19,0.00027992,2]
[425830469,1781953843000,-644.29,0.00027996,2]
[425830449,1781953843000,-643.36,0.00027987,2]
[425830454,1781953843000,-482.23,0.00027992,2]
[425830457,1781953843000,-573.64,0.00027992,2]
[425830458,1781953843000,-644.29,0.00027992,2]
[425830462,1781953843000,-186.14,0.00027992,2]
[425830456,1781953843000,-482.4,0.00027992,2]
[425830460,1781953843000,-573.48,0.00027992,2]
[425830459,1781953843000,-185.13,0.00027992,2]
[425830461,1781953843000,-644.29,0.00027992,2]
[425830463,1781953843000,-185.19,0.00027992,2]
[425830464,1781953843000,-396.26,0.00027994,2]
[425830465,1781953843000,-396.26,0.00027995,2]
[425830466,1781953843000,-185.19,0.00027996,2]
[425830514,1781953844000,-155.79,0.00028355,2]
[425830509,1781953844000,-350.0,0.00028313,11]
[425830510,1781953844000,-386.0,0.00028335,2]
[425830511,1781953844000,-155.21,0.00028355,2]
[425830515,1781953844000,-201.92,0.00028355,2]
[425830512,1781953844000,-155.49,0.00028355,2]
[425830508,1781953844000,-504.0,0.00028308,10]
[425830513,1781953844000,-248.81,0.00028355,2]
[425830521,1781953844000,-204.27,0.00028516,30]
[425830519,1781953844000,-386.0,0.00028461,2]
[425830518,1781953844000,-1580.27789201,0.00028412,2]
[425830517,1781953844000,-386.0,0.00028409,2]
[425830520,1781953844000,-511.03,0.000285,7]
[425830524,1781953844000,-151.0,0.00028522,7]
[425830523,1781953844000,-201.92,0.00028516,30]
[425830525,1781953844000,-2095.54906869,0.00028525,2]
[425830507,1781953844000,-615.32592103,0.000283,2]
[425830516,1781953844000,-7000.0,0.000284,3]
[425830506,1781953844000,-615.32592103,0.000283,2]
[425830488,1781953844000,-185.19,0.00028021,2]
[425830501,1781953844000,-1824.0,0.00028273,10]
[425830526,1781953844000,-1824.49058953,0.00028558,2]
[425830486,1781953844000,-185.19,0.00028,2]
[425830487,1781953844000,-482.4,0.00028004,2]
[425830489,1781953844000,-155.49,0.00028033,30]
[425830492,1781953844000,-201.92,0.00028033,30]
[425830490,1781953844000,-248.81,0.00028033,30]
[425830491,1781953844000,-155.79,0.00028033,30]
[425830493,1781953844000,-1444.83,0.00028096,120]
[425830505,1781953844000,-615.32592104,0.000283,2]
[425830497,1781953844000,-248.81,0.00028194,7]
[425830495,1781953844000,-161.28,0.0002813,2]
[425830496,1781953844000,-155.49,0.00028194,7]
[425830499,1781953844000,-201.92,0.00028194,7]
[425830498,1781953844000,-155.79,0.00028194,7]
[425830503,1781953844000,-184.354872,0.00028285,14]
[425830500,1781953844000,-189.8,0.00028267,2]
[425830504,1781953844000,-386.0,0.00028294,2]
[425830502,1781953844000,-1203.18,0.00028278,2]
[425830494,1781953844000,-160.15,0.0002813,2]
[425830522,1781953844000,-248.81,0.00028516,30]
[425830558,1781953844000,-482.4,0.00028821,2]
[425830530,1781953844000,-1444.83,0.00028671,120]
[425830552,1781953844000,-482.36,0.00028819,2]
[425830551,1781953844000,-185.19,0.00028819,2]
[425830553,1781953844000,-482.4,0.00028819,2]
[425830555,1781953844000,-644.31,0.00028819,2]
[425830554,1781953844000,-645.64,0.00028819,2]
[425830556,1781953844000,-207.0,0.0002882,30]
[425830566,1781953844000,-482.4,0.00028822,2]
[425830557,1781953844000,-573.61,0.00028821,2]
[425830559,1781953844000,-185.19,0.00028822,2]
[425830562,1781953844000,-396.26,0.00028822,2]
[425830561,1781953844000,-644.29,0.00028822,2]
[425830563,1781953844000,-185.19,0.00028822,2]
[425830565,1781953844000,-482.4,0.00028822,2]
[425830564,1781953844000,-396.0,0.00028822,2]
[425830567,1781953844000,-185.19,0.00028822,2]
[425830568,1781953844000,-644.29,0.00028822,2]
[425830529,1781953844000,-150.0,0.0002863,2]
[425830549,1781953844000,-644.12,0.00028818,2]
[425830548,1781953844000,-185.19,0.00028818,2]
[425830560,1781953844000,-482.4,0.00028822,2]
[425830546,1781953844000,-573.61,0.00028818,2]
[425830528,1781953844000,-196.3,0.0002863,30]
[425830550,1781953844000,-482.4,0.00028819,2]
[425830527,1781953844000,-1535.3615508,0.00028584,2]
[425830532,1781953844000,-804.17102365,0.00028703,2]
[425830531,1781953844000,-644.79446245,0.00028703,2]
[425830535,1781953844000,-150.0,0.00028767,2]
[425830534,1781953844000,-150.0,0.00028767,2]
[425830536,1781953844000,-196.3,0.00028797,7]
[425830538,1781953844000,-185.08,0.00028814,2]
[425830533,1781953844000,-415.15698015,0.00028766,2]
[425830537,1781953844000,-151.0,0.00028811,7]
[425830543,1781953844000,-185.19,0.00028816,2]
[425830541,1781953844000,-396.26,0.00028816,2]
[425830540,1781953844000,-573.61,0.00028816,2]
[425830544,1781953844000,-396.26,0.00028816,2]
[425830542,1781953844000,-186.12,0.00028816,2]
[425830539,1781953844000,-185.19,0.00028814,2]
[425830547,1781953844000,-482.4,0.00028818,2]
[425830545,1781953844000,-644.29,0.00028818,2]
[425830601,1781953845000,-151.0,0.00028997,7]
[425830604,1781953845000,-500.0,0.00028999,30]
[425830605,1781953845000,-500.0,0.00028999,30]
[425830603,1781953845000,-250.77101734,0.00028997,7]
[425830599,1781953845000,-151.0,0.00028997,7]
[425830600,1781953845000,-151.0,0.00028997,7]
[425830602,1781953845000,-151.0,0.00028997,7]
[425830596,1781953845000,-151.0,0.00028997,7]
[425830606,1781953845000,-500.0,0.00028999,30]
[425830597,1781953845000,-151.0,0.00028997,7]
[425830607,1781953845000,-333.27161819,0.00028999,30]
[425830622,1781953845000,-628656.53766518,0.00029,2]
[425830612,1781953845000,-2500.0,0.00029,2]
[425830609,1781953845000,-500.0,0.00028999,7]
[425830610,1781953845000,-546.57,0.00028999,7]
[425830611,1781953845000,-1393596.01979314,0.00029,5]
[425830615,1781953845000,-485.92,0.00029,2]
[425830616,1781953845000,-5279.1533838,0.00029,2]
[425830613,1781953845000,-541.24282986,0.00029,2]
[425830620,1781953845000,-181.7,0.00029,2]
[425830619,1781953845000,-216.28381402,0.00029,30]
[425830598,1781953845000,-151.0,0.00028997,7]
[425830608,1781953845000,-500.0,0.00028999,7]
[425830592,1781953845000,-151.0,0.00028997,7]
[425830572,1781953845000,-1686.8913113,0.00028869,2]
[425830595,1781953845000,-151.0,0.00028997,7]
[425830569,1781953845000,-303.89170774,0.0002883,2]
[425830571,1781953845000,-150.0,0.00028856,5]
[425830570,1781953845000,-573.61,0.00028843,2]
[425830573,1781953845000,-999.76329986,0.0002889,2]
[425830574,1781953845000,-1686.8913113,0.00028899,2]
[425830576,1781953845000,-1686.8913113,0.000289,2]
[425830617,1781953845000,-1000.0,0.00029,2]
[425830575,1781953845000,-5300.0,0.000289,10]
[425830577,1781953845000,-155.0,0.00028907,30]
[425830578,1781953845000,-160.0,0.00028907,30]
[425830579,1781953845000,-153.0,0.00028907,30]
[425830593,1781953845000,-151.0,0.00028997,7]
[425830580,1781953845000,-157.0,0.00028907,30]
[425830581,1781953845000,-158.0,0.00028907,30]
[425830583,1781953845000,-151.0,0.0002891,30]
[425830586,1781953845000,-604.0,0.0002891,30]
[425830585,1781953845000,-420.0,0.0002891,30]
[425830584,1781953845000,-156.0,0.0002891,30]
[425830587,1781953845000,-23466.70126906,0.0002893,2]
[425830589,1781953845000,-151.0,0.00028955,7]
[425830588,1781953845000,-386.0,0.00028944,2]
[425830590,1781953845000,-196.3,0.00028964,2]
[425830591,1781953845000,-1686.8913113,0.00028993,2]
[425830594,1781953845000,-151.0,0.00028997,7]
[425830582,1781953845000,-161.0,0.0002891,30]
[425830618,1781953845000,-679.0,0.00029,2]
[425830614,1781953845000,-25228.0,0.00029,2]
[425830623,1781953845000,-1686.8913113,0.00029029,2]
[425830665,1781953845000,-482.37,0.00029638,2]
[425830663,1781953845000,-482.4,0.00029638,2]
[425830662,1781953845000,-185.19,0.00029638,2]
[425830660,1781953845000,-482.4,0.00029636,2]
[425830664,1781953845000,-440.63,0.00029638,2]
[425830666,1781953845000,-482.4,0.00029638,2]
[425830667,1781953845000,-644.18,0.00029638,2]
[425830668,1781953845000,-644.29,0.00029638,2]
[425830674,1781953845000,-396.26,0.00029639,2]
[425830670,1781953845000,-396.26,0.00029639,2]
[425830675,1781953845000,-397.29,0.00029639,2]
[425830671,1781953845000,-396.26,0.00029639,2]
[425830673,1781953845000,-644.19,0.00029639,2]
[425830672,1781953845000,-644.29,0.00029639,2]
[425830676,1781953845000,-482.4,0.00029639,2]
[425830677,1781953845000,-644.29,0.00029639,2]
[425830678,1781953845000,-482.4,0.00029639,2]
[425830679,1781953845000,-396.26,0.00029641,2]
[425830681,1781953845000,-482.4,0.00029641,2]
[425830680,1781953845000,-482.4,0.00029641,2]
[425830682,1781953845000,-396.26,0.00029643,2]
[425830683,1781953845000,-644.3,0.00029643,2]
[425830621,1781953845000,-2818.302057,0.00029,120]
[425830661,1781953845000,-644.29,0.00029638,2]
[425830659,1781953845000,-482.4,0.00029636,2]
[425830669,1781953845000,-482.4,0.00029638,2]
[425830658,1781953845000,-644.29,0.00029636,2]
[425830625,1781953845000,-1686.8913113,0.00029096,2]
[425830655,1781953845000,-262.79,0.00029624,15]
[425830624,1781953845000,-1686.8913113,0.00029053,2]
[425830626,1781953845000,-1686.8913113,0.00029123,2]
[425830627,1781953845000,-201.6445164,0.0002913,20]
[425830631,1781953845000,-504.0,0.00029231,10]
[425830634,1781953845000,-1686.8913113,0.0002927,2]
[425830630,1781953845000,-1686.8913113,0.00029147,2]
[425830633,1781953845000,-1444.83,0.00029247,120]
[425830629,1781953845000,-196.3,0.00029132,30]
[425830628,1781953845000,-1686.8913113,0.00029131,2]
[425830635,1781953845000,-196.3,0.00029299,7]
[425830632,1781953845000,-1686.8913113,0.00029235,2]
[425830650,1781953845000,-152.0,0.00029527,4]
[425830638,1781953845000,-350.0,0.00029355,13]
[425830640,1781953845000,-1686.8913113,0.00029368,2]
[425830652,1781953845000,-872.36,0.00029589,2]
[425830643,1781953845000,-2736.0,0.00029404,10]
[425830653,1781953845000,-534.35549338,0.0002959,2]
[425830645,1781953845000,-196.3,0.00029467,2]
[425830656,1781953845000,-196.3,0.00029634,30]